bitfinex/quotes_SOLUSD_20240620
["timestamp","ask_amount","ask_price","bid_price","bid_amount"]
[1718892742186,22.42,134.01,133.86,28.524]
[1718892742391,20.0,134.0,133.89,7.4684]
[1718892742687,42.42,134.0,133.86,6.104]
[1718892743008,20.0,134.0,133.91,7.4672]
[1718892743176,15.18742454,134.03,133.92,7.4668]
[1718892743376,15.18742454,134.03,133.88,9.979991]
[1718892743580,7.4718,134.08,133.93,21.559]
[1718892743885,7.4718,134.08,133.93,43.979]
[1718892744075,29.8918,134.08,133.93,21.559]
[1718892744280,7.4718,134.08,133.95,18.6631]
[1718892744467,7.4718,134.08,133.93,21.559]
[1718892744698,7.72521236,134.11,133.97,18.6608]
[1718892744983,7.72521236,134.11,133.98,18.6581]
[1718892745191,7.72521236,134.11,133.99,7.4628]
[1718892745363,7.72521236,134.11,133.94,1.49096899]
[1718892745689,7.4718,134.12,134.02,7.4612]
[1718892745866,7.4718,134.12,134.01,7.4619]
[1718892746067,7.4718,134.12,133.94,22.42]
[1718892746068,7.4718,134.12,134.0,7.4625]
[1718892746365,7.4718,134.12,133.95,18.6634]
[1718892746781,7.4718,134.12,133.97,7.4641]
[1718892746978,7.4718,134.12,133.95,18.6634]
[1718892747180,7.4718,134.12,133.97,18.6607]
[1718892747384,20.0,134.11,133.98,7.4637]
[1718892747584,20.0,134.11,133.93,21.559]
[1718892747793,20.0,134.11,134.0,7.4624]
[1718892747962,20.0,134.11,133.93,21.559]
[1718892748285,20.0,134.11,133.98,7.4636]
[1718892748586,20.0,134.11,133.99,7.4632]
[1718892748767,20.0,134.11,133.97,18.6599]
[1718892748964,20.0,134.11,134.0,7.4623]
[1718892749186,20.0,134.11,133.99,18.6578]
[1718892749395,7.4718,134.12,134.05,7.4598]
[1718892749566,7.4718,134.12,134.04,7.4602]
[1718892749765,7.4718,134.12,134.01,6.6286]
[1718892749993,7.71204378,134.16,134.07,7.4584]
[1718892750175,7.4718,134.17,134.02,15.5933]
[1718892750362,7.4718,134.17,134.05,18.6497]
[1718892750690,7.4718,134.17,134.09,7.4573]
[1718892750894,7.4718,134.17,134.08,7.4579]
[1718892751185,7.4718,134.17,134.07,7.4587]
[1718892751387,7.4718,134.17,134.06,7.4591]
[1718892751780,7.4718,134.17,134.07,7.4586]
[1718892751985,7.4718,134.17,134.03,18.6523]
[1718892752490,7.4718,134.17,134.02,15.5933]
[1718892752666,7.4718,134.17,134.01,6.6286]
[1718892752872,20.0,134.16,134.06,7.4591]
[1718892753293,7.4718,134.17,134.06,18.6481]
[1718892753467,20.0,134.16,134.08,7.4578]
[1718892753880,20.0,134.16,134.01,6.6286]
[1718892754083,20.0,134.15,134.05,7.4597]
[1718892754274,20.0,134.15,134.04,7.46]
[1718892754579,20.0,134.15,134.01,6.6286]
[1718892754791,20.0,134.16,134.01,14.0904]
[1718892755089,42.42,134.16,134.02,7.4612]
[1718892755288,42.42,134.16,134.01,6.6286]
[1718892755670,20.0,134.16,134.06,7.459]
[1718892755983,20.0,134.16,134.04,7.4602]
[1718892756193,42.42,134.16,134.01,6.6286]
[1718892756494,22.42,134.14,133.98,22.5282]
[1718892757000,22.42,134.12,133.99,7.4631]
[1718892757289,22.42,134.12,133.98,6.5331]
[1718892757290,20.0,134.11,133.98,6.5331]
[1718892757497,7.4718,134.15,134.0,18.6563]
[1718892757674,20.0,134.14,134.03,7.4609]
[1718892757875,20.0,134.14,134.0,18.6563]
[1718892758080,20.0,134.14,134.03,7.4609]
[1718892758315,42.42,134.14,133.99,7.4627]
[1718892758478,22.42,134.12,134.0,7.4622]
[1718892758686,20.0,134.11,133.96,18.661]
[1718892758888,20.0,134.11,134.01,7.4617]
[1718892759078,20.0,134.11,134.0,7.4625]
[1718892759279,29.8918,134.09,133.91,6.2075]
[1718892759584,20.0,134.08,133.96,7.4648]
[1718892759790,20.0,134.08,133.94,7.4659]
[1718892760180,20.0,134.08,133.91,6.2075]
[1718892760378,22.42,134.07,133.96,7.4646]
[1718892760581,20.0,134.06,133.96,7.4646]
[1718892760882,7.7191038,134.06,133.96,7.4646]
[1718892761083,7.7191038,134.06,133.92,32.65]
[1718892761297,7.4718,134.09,134.01,7.4618]
[1718892761492,20.0,134.08,133.95,18.6636]
[1718892761703,42.42,134.08,133.92,32.65]
[1718892761910,20.0,134.08,133.97,7.4638]
[1718892762200,7.4718,134.09,134.0,7.4625]
[1718892762404,7.4718,134.09,133.99,7.463]
[1718892762574,20.0,134.08,134.0,7.4626]
[1718892762776,7.4718,134.09,133.96,22.42]
[1718892763071,7.4718,134.09,133.94,7.4656]
[1718892763272,20.0,134.08,133.93,7.4662]
[1718892763586,22.42,134.07,133.93,7.4662]
[1718892763787,22.42,134.05,133.93,7.4662]
[1718892763988,22.42,134.05,133.91,6.2075]
[1718892764313,42.42,134.04,133.93,7.4662]
[1718892764607,7.4718,134.03,133.93,7.4665]
[1718892764781,20.0,134.02,133.94,7.4659]
[1718892764987,20.0,134.02,133.94,7.4658]
[1718892765299,7.4718,134.03,133.9,37.4523]
[1718892765689,7.4718,134.03,133.96,7.4647]
[1718892765897,7.4718,134.03,133.91,18.6685]
[1718892766198,7.4718,134.03,133.88,41.0921]
[1718892766408,20.0,134.02,133.88,41.0932]
[1718892766591,20.0,134.02,133.9,7.4679]
[1718892766798,20.0,134.02,133.91,7.4674]
[1718892767003,42.42,134.02,133.87,6.08]
[1718892767181,42.42,134.02,133.86,18.6732]
[1718892767381,42.42,134.02,133.9,7.4679]
[1718892767805,42.42,134.02,133.91,7.4676]
[1718892768210,20.0,134.02,133.87,22.42]
[1718892768498,7.4718,134.03,133.94,7.4657]
[1718892768705,7.4718,134.03,133.87,5.96149023]
[1718892768906,7.4718,134.03,133.95,7.4653]
[1718892769083,7.4718,134.03,133.96,11.58118364]
[1718892769377,7.4718,134.03,133.98,7.4635]
[1718892769582,7.4718,134.03,133.99,4.11724313]
[1718892769888,7.4718,134.03,133.96,18.6611]
[1718892769889,7.4718,134.09,133.98,18.659]
[1718892770084,7.4718,134.09,134.03,7.4609]
[1718892770286,7.4718,134.09,133.99,18.6569]
[1718892770500,7.4718,134.09,134.02,7.4614]
[1718892770691,7.4718,134.09,134.03,7.4607]
[1718892770888,7.4718,134.09,134.0,18.6556]
[1718892771214,7.4718,134.09,134.0,7.4622]
[1718892771495,7.4718,134.09,133.99,18.6579]
[1718892771706,7.4718,134.09,134.01,7.4621]
[1718892771894,7.4718,134.09,134.02,7.4612]
[1718892772479,7.4718,134.09,134.03,7.4607]
[1718892772681,7.4718,134.09,133.97,18.6606]
[1718892772914,7.4718,134.09,133.95,15.5289]
[1718892773211,29.8918,134.09,133.97,7.4639]
[1718892773385,42.42,134.08,133.97,7.4639]
[1718892773586,20.0,134.08,133.98,7.4636]
[1718892773898,20.0,134.08,133.92,29.0208]
[1718892774096,20.0,134.08,133.97,18.6597]
[1718892774296,20.0,134.08,134.0,7.4623]
[1718892775103,42.42,134.08,133.96,7.4645]
[1718892775481,42.42,134.08,133.97,7.4641]
[1718892775902,42.42,134.08,133.98,7.4636]
[1718892776099,42.42,134.08,133.97,7.4641]
[1718892776291,20.0,134.08,133.98,7.4636]
[1718892776488,7.4718,134.09,134.01,7.4619]
[1718892776687,7.4718,134.09,134.02,7.4612]
[1718892776891,7.4718,134.09,134.0,7.4622]
[1718892777302,7.4718,134.09,134.01,7.462]
[1718892777610,7.4718,134.09,134.0,22.42]
[1718892777784,7.4718,134.09,134.02,18.6527]
[1718892778108,7.4718,134.09,134.02,7.4613]
[1718892778406,7.4718,134.09,134.04,7.46]
[1718892778777,7.4718,134.09,134.05,7.4596]
[1718892779203,7.4718,134.09,133.99,18.6578]
[1718892779407,7.4718,134.09,134.03,7.4607]
[1718892779700,7.4718,134.09,134.02,7.4613]
[1718892779907,7.4718,134.09,133.99,18.6578]
[1718892780087,7.4718,134.09,134.0,7.4624]
[1718892780289,7.4718,134.09,133.97,7.714421]
[1718892780486,7.4718,134.09,133.94,32.65]
[1718892780487,29.8918,134.09,133.92,6.6008]
[1718892780822,37.6145987,134.09,133.98,7.4636]
[1718892780996,37.6145987,134.09,133.95,18.6635]
[1718892781191,37.6145987,134.09,133.95,7.465]
[1718892781390,22.42,134.07,133.92,18.667]
[1718892781606,27.4718,134.08,133.94,18.6644]
[1718892781607,49.8918,134.08,133.94,18.6644]
[1718892781905,49.8918,134.08,133.92,18.6677]
[1718892782517,22.42,134.04,133.93,7.466]
[1718892782690,20.0,134.03,133.93,18.6663]
[1718892782890,20.0,134.03,133.95,7.4652]
[1718892783300,20.0,134.04,133.95,7.4654]
[1718892783611,7.4718,134.05,133.94,18.6642]
[1718892783798,7.4718,134.05,133.95,7.4652]
[1718892784299,42.42,134.04,133.92,7.4669]
[1718892784499,42.42,134.04,133.89,18.6708]
[1718892784705,42.42,134.04,133.91,18.6688]
[1718892784907,20.0,134.04,133.87,45.789009]
[1718892785296,20.0,134.04,133.92,7.4668]
[1718892785815,20.0,134.04,133.93,7.4665]
[1718892786015,22.42,134.03,133.93,7.4665]
[1718892786309,20.0,134.02,133.91,7.4674]
[1718892786515,20.0,134.02,133.89,18.6717]
[1718892786516,42.42,134.02,133.92,7.467]
[1718892786718,42.42,134.02,133.87,15.8708]
[1718892786897,29.8918,134.01,133.91,7.4675]
[1718892787097,29.8918,134.01,133.9,7.468]
[1718892787297,7.4718,134.01,133.93,7.4664]
[1718892787499,7.4718,134.01,133.92,7.4667]
[1718892787700,29.8918,134.01,133.88,18.6732]
[1718892787906,29.8918,134.01,133.87,20.0]
[1718892788109,29.8918,134.01,133.9,7.4678]
[1718892788305,29.8918,134.01,133.87,20.0]
[1718892788491,29.8918,134.01,133.89,7.4684]
[1718892788696,29.8918,134.01,133.89,7.4687]
[1718892788697,42.42,134.0,133.89,7.4687]
[1718892789005,20.0,134.0,133.91,7.4672]
[1718892789319,42.42,134.0,133.89,7.4683]
[1718892789618,20.0,134.0,133.92,7.4671]
[1718892789917,20.0,134.0,133.89,18.6719]
[1718892790114,20.0,134.0,133.9,7.4682]
[1718892790288,22.42,133.99,133.88,7.4691]
[1718892790490,29.8918,133.98,133.87,20.0]
[1718892790911,29.8918,133.98,133.88,7.469]
[1718892791111,29.8918,133.98,133.89,7.4687]
[1718892791303,7.4718,133.98,133.83,44.1644]
[1718892791503,29.8918,133.98,133.89,7.4684]
[1718892791697,29.8918,133.98,133.88,7.4691]
[1718892792113,7.4718,133.98,133.9,7.4681]
[1718892792419,7.4718,133.98,133.87,18.6736]
[1718892792713,7.4718,133.98,133.9,7.4679]
[1718892792919,7.4718,133.98,133.89,7.4686]
[1718892793101,7.4718,133.98,133.87,18.6736]
[1718892793295,7.4718,133.98,133.86,22.42]
[1718892793503,7.4718,133.98,133.95,7.4653]
[1718892793719,7.4718,133.98,133.94,7.4658]
[1718892794020,7.4718,133.98,133.92,7.4666]
[1718892794194,7.4718,133.98,133.93,7.4665]
[1718892794390,7.4718,133.98,133.91,7.4671]
[1718892794798,7.4718,133.98,133.92,7.4669]
[1718892794994,7.4718,133.98,133.93,7.4663]
[1718892795225,7.4718,133.98,133.95,7.4652]
[1718892795400,7.4718,133.98,133.94,7.4658]
[1718892795858,7.4718,133.98,133.92,18.6676]
[1718892796019,7.4718,134.04,133.9,22.42]
[1718892796206,7.4718,134.04,133.9,71.1304]
[1718892796406,7.4718,134.04,133.97,7.4642]
[1718892796719,7.4718,134.04,133.94,18.6639]
[1718892797025,7.4718,134.04,133.97,7.4641]
[1718892797312,7.4718,134.04,133.96,7.4646]
[1718892797523,7.4718,134.04,133.97,7.4642]
[1718892797915,7.4718,134.04,134.0,7.4623]
[1718892798125,7.4718,134.04,133.99,7.463]
[1718892798497,7.4718,134.04,133.98,7.4636]
[1718892798701,7.4718,134.04,133.96,18.6622]
[1718892798924,7.4718,134.04,133.99,7.4628]
[1718892799124,7.4718,134.04,133.98,18.6586]
[1718892799311,7.4718,134.04,134.0,7.4623]
[1718892799627,7.4718,134.09,134.02,7.4613]
[1718892799922,7.4718,134.09,134.03,1.48972145]
[1718892800225,7.4718,134.09,134.03,8.95062145]
[1718892800425,7.4718,134.09,134.04,7.4604]
[1718892800625,7.4718,134.09,134.05,1.48949918]
[1718892800923,7.4718,134.14,134.07,7.4585]
[1718892801226,7.4718,134.14,134.09,7.4576]
[1718892801524,295.82,134.19,134.1,8.94732246]
[1718892801525,27.71551842,134.19,134.1,8.94732246]
[1718892801821,27.71551842,134.19,134.11,8.94671133]
[1718892801822,7.4718,134.18,134.11,8.94671133]
[1718892802029,7.4718,134.18,134.11,1.49021133]
[1718892802506,7.4718,134.18,134.09,7.4573]
[1718892802704,7.4718,134.18,134.05,24.8937]
[1718892802904,7.4718,134.18,134.05,6.2453]
[1718892803114,7.4718,134.18,134.1,7.457]
[1718892803300,7.4718,134.18,134.12,7.4556]
[1718892803718,7.4718,134.18,134.11,7.4563]
[1718892803916,7.4718,134.18,134.06,15.7009]
[1718892804124,29.8918,134.18,134.06,7.4588]
[1718892804299,29.8918,134.18,134.02,21.7191]
[1718892804502,7.4718,134.18,134.05,18.6494]
[1718892804727,7.4718,134.18,134.02,44.1391]
[1718892804935,7.4718,134.18,134.1,7.4569]
[1718892805229,7.4718,134.18,134.11,7.4565]
[1718892805520,7.4718,134.18,134.07,18.6461]
[1718892805727,7.4718,134.18,134.09,18.6438]
[1718892806113,7.4718,134.23,134.07,22.42]
[1718892806331,7.4718,134.23,134.09,38.3925]
[1718892806512,7.4718,134.23,134.17,7.4527]
[1718892806823,7.4718,134.32,134.11,22.42]
[1718892807133,27.70812889,134.31,134.16,18.634]
[1718892807308,22.42,134.3,134.18,7.4525]
[1718892807811,22.42,134.28,134.16,7.4536]
[1718892808009,22.42,134.28,134.14,7.4545]
[1718892808327,22.42,134.26,134.09,38.3925]
[1718892808712,7.4718,134.27,134.18,7.4525]
[1718892808906,7.4718,134.27,134.14,18.6359]
[1718892809141,7.4718,134.27,134.19,7.452]
[1718892809307,7.4718,134.27,134.09,38.3925]
[1718892816039,7.4718,134.27,134.09,48.6225]
[1718892816246,20.0,134.26,134.09,15.9725]
[1718892817319,7.4718,134.25,134.09,15.9725]
[1718892817733,7.4718,134.25,134.07,5.85144589]
[1718892817912,20.0,134.24,134.07,5.85144589]
[1718892818749,7.4718,134.23,134.07,5.85144589]
[1718892818948,20.0,134.22,134.05,48.2667]
[1718892819318,22.42,134.2,134.0,22.0213]
[1718892819538,22.42,134.18,134.0,22.0213]
[1718892820018,29.8918,134.16,133.99,22.42]
[1718892820339,20.0,134.15,133.99,22.42]
[1718892820541,22.42,134.14,134.01,18.655]
[1718892821111,22.42,134.14,134.01,41.075]
[1718892822729,22.42,134.14,133.98,32.65]
[1718892822932,22.42,134.12,133.98,32.65]
[1718892823126,22.42,134.12,133.99,22.42]
[1718892823327,27.4718,134.11,133.99,22.42]
[1718892823532,7.4718,134.11,133.99,44.84]
[1718892823724,7.4718,134.11,134.01,18.6545]
[1718892823925,7.4718,134.11,134.05,7.4598]
[1718892824147,7.4718,134.11,133.99,22.42]
[1718892824350,20.0,134.1,134.02,7.4615]
[1718892824527,20.0,134.1,133.98,18.6593]
[1718892824730,20.0,134.1,134.02,7.4611]
[1718892825151,20.0,134.1,134.01,7.4618]
[1718892825442,20.0,134.1,133.98,18.6593]
[1718892825443,42.42,134.1,133.98,7.4636]
[1718892825628,42.42,134.1,133.98,7.4637]
[1718892825826,42.42,134.1,133.96,18.6622]
[1718892826048,42.42,134.1,133.99,7.463]
[1718892826255,20.0,134.1,134.0,1.49189495]
[1718892826547,20.0,134.1,133.95,1.49189495]
[1718892826848,20.0,134.1,133.96,1.49203384]
[1718892827352,20.0,134.1,133.94,52.324754]
[1718892827842,7.4718,134.11,133.94,52.324754]
[1718892828227,7.4718,134.11,133.99,22.42]
[1718892828846,7.4718,134.11,134.05,7.4598]
[1718892829032,7.4718,134.11,133.98,32.65]
[1718892829237,7.4718,134.11,133.99,18.6569]
[1718892829540,7.4718,134.11,134.04,7.4603]
[1718892829736,7.4718,134.11,134.03,7.4608]
[1718892830250,7.4718,134.11,134.0,18.6555]
[1718892830442,7.4718,134.11,134.05,7.4596]
[1718892830650,7.4718,134.11,134.04,7.4603]
[1718892830952,7.4718,134.11,134.01,7.4617]
[1718892831148,7.4718,134.11,134.0,7.4625]
[1718892832252,7.4718,134.11,134.01,7.462]
[1718892832448,42.42,134.1,133.99,7.4628]
[1718892832632,42.42,134.1,133.97,18.6595]
[1718892832833,20.0,134.1,133.97,18.6595]
[1718892833028,42.42,134.1,133.94,29.904754]
[1718892833232,20.0,134.1,133.96,32.65]
[1718892833555,20.0,134.1,134.02,7.4613]
[1718892833853,7.4718,134.11,134.01,18.6552]
[1718892834032,7.4718,134.11,133.99,18.6578]
[1718892834231,7.4718,134.11,134.02,7.4615]
[1718892834551,7.4718,134.11,134.05,18.6494]
[1718892834752,7.4718,134.11,134.08,7.4578]
[1718892835130,7.4718,134.11,134.07,7.4585]
[1718892835349,7.4718,134.11,134.05,7.4593]
[1718892835536,7.4718,134.11,134.04,7.4602]
[1718892835743,7.4718,134.11,134.05,7.4598]
[1718892836042,7.4718,134.11,134.03,7.4607]
[1718892836237,7.4718,134.11,134.04,7.4604]
[1718892836624,7.4718,134.11,134.02,7.4612]
[1718892836854,7.4718,134.11,134.03,7.4609]
[1718892837037,7.4718,134.11,134.03,18.6521]
[1718892837244,7.4718,134.11,134.08,7.4578]
[1718892837452,7.4718,134.11,133.98,55.07]
[1718892837638,7.4718,134.11,134.06,7.4591]
[1718892837837,7.4718,134.18,134.04,22.42]
[1718892838060,7.4718,134.18,134.07,7.4583]
[1718892838061,29.8918,134.18,134.07,7.4583]
[1718892838244,29.8918,134.18,134.04,18.6508]
[1718892838743,7.4718,134.18,134.06,18.6483]
[1718892838943,7.4718,134.18,134.1,7.4567]
[1718892839153,7.4718,134.18,134.04,22.42]
[1718892839348,7.4718,134.18,134.11,7.4564]
[1718892839538,7.4718,134.18,134.1,7.4569]
[1718892839750,7.4718,134.18,134.11,0.89190887]
[1718892839952,7.4718,134.18,134.1,7.4569]
[1718892840251,7.4718,134.18,134.05,48.531482]
[1718892840456,7.4718,134.18,134.05,18.6497]
[1718892840664,7.4718,134.18,134.08,7.4579]
[1718892840894,254.39900463,134.24,134.05,44.84]
[1718892841164,20.0,134.23,134.14,7.4545]
[1718892841665,42.42,134.24,134.14,7.4545]
[1718892841847,42.42,134.24,134.13,7.4551]
[1718892842054,42.42,134.24,134.14,7.4548]
[1718892842239,42.42,134.24,134.1,18.6414]
[1718892842568,20.0,134.24,134.12,18.6388]
[1718892842744,20.0,134.25,134.15,7.4539]
[1718892843252,20.0,134.25,134.14,18.6372]
[1718892843446,20.0,134.25,134.16,7.4535]
[1718892843645,20.0,134.25,134.12,18.6399]
[1718892843646,42.42,134.25,134.12,18.6399]
[1718892843848,42.42,134.25,134.14,7.4544]
[1718892844034,42.42,134.25,134.11,32.65]
[1718892844236,42.42,134.25,134.09,22.42]
[1718892844470,42.42,134.25,134.16,7.4537]
[1718892844837,42.42,134.25,134.1,22.42]
[1718892844838,22.42,134.29,134.1,22.42]
[1718892845062,22.42,134.29,134.14,18.6368]
[1718892845362,22.42,134.27,134.12,18.6397]
[1718892845567,22.42,134.27,134.16,7.4537]
[1718892845769,20.0,134.28,134.14,18.6365]
[1718892846062,42.42,134.28,134.16,7.4536]
[1718892846364,42.42,134.28,134.17,7.4531]
[1718892846857,42.42,134.28,134.11,51.2902]
[1718892847076,42.42,134.28,134.12,7.4558]
[1718892847235,42.42,134.28,134.13,7.4553]
[1718892847439,42.42,134.28,134.06,9.979991]
[1718892847740,20.0,134.28,134.15,18.6347]
[1718892848051,5.83538889,134.31,134.18,7.4524]
[1718892848052,42.41,134.29,134.18,7.4524]
[1718892848963,42.41,134.29,134.16,18.6331]
[1718892849367,20.0,134.29,134.18,7.4524]
[1718892849540,22.41,134.28,134.13,18.6372]
[1718892849856,20.0,134.29,134.13,18.6372]
[1718892850066,20.0,134.31,134.18,7.4524]
[1718892850264,20.0,134.31,134.17,7.453]
[1718892850438,22.41,134.3,134.17,7.453]
[1718892850638,42.41,134.29,134.15,18.6356]
[1718892850851,42.41,134.28,134.15,18.6356]
[1718892851054,22.41,134.28,134.18,7.4525]
[1718892851346,20.0,134.31,134.15,18.6356]
[1718892851665,22.41,134.3,134.19,7.4517]
[1718892851874,20.0,134.29,134.19,7.4517]
[1718892852248,20.0,134.29,134.18,7.4526]
[1718892852451,22.41,134.3,134.18,7.4526]
[1718892852768,22.41,134.28,134.17,7.453]
[1718892853544,22.41,134.3,134.17,7.453]
[1718892853744,22.41,134.28,134.17,7.453]
[1718892854839,22.41,134.3,134.15,18.6356]
[1718892855050,20.0,134.29,134.19,7.4518]
[1718892855453,42.41,134.29,134.16,18.6332]
[1718892855653,20.0,134.29,134.14,37.7234]
[1718892855853,20.0,134.31,134.17,18.6317]
[1718892856059,20.0,134.31,134.2,7.4514]
[1718892856264,20.0,134.31,134.19,7.452]
[1718892856470,22.41,134.3,134.19,7.452]
[1718892856664,42.41,134.29,134.19,7.452]
[1718892856968,22.41,134.29,134.2,1.54562755]
[1718892857545,42.41,134.31,134.2,1.54562755]
[1718892857767,42.41,134.31,134.2,8.99682755]
[1718892857971,6.81057744,134.35,134.17,55.06]
[1718892858146,246.67452333,134.39,134.21,7.4506]
[1718892858352,7.71712774,134.38,134.22,7.4502]
[1718892858770,22.41,134.37,134.22,7.4502]
[1718892859082,22.41,134.37,134.25,7.4484]
[1718892859247,22.41,134.37,134.27,7.4473]
[1718892859650,22.41,134.37,134.23,18.6246]
[1718892859854,22.41,134.37,134.27,7.4473]
[1718892860055,22.41,134.37,134.26,7.448]
[1718892860668,7.71712774,134.38,134.27,7.4475]
[1718892860877,30.12712774,134.38,134.27,7.4475]
[1718892861460,20.0,134.37,134.25,18.6207]
[1718892861659,20.0,134.37,134.28,7.4468]
[1718892862185,20.0,134.37,134.26,18.6192]
[1718892862349,7.71712774,134.38,134.29,7.4464]
[1718892862672,22.41,134.44,134.29,7.4464]
[1718892862869,22.41,134.4,134.29,7.4464]
[1718892863175,20.0,134.43,134.28,18.6173]
[1718892863396,7.71252439,134.41,134.28,18.6173]
[1718892863580,7.71252439,134.41,134.31,7.445]
[1718892864062,30.12252439,134.41,134.3,7.4459]
[1718892864262,7.71252439,134.41,134.28,18.6173]
[1718892864466,7.71252439,134.41,134.32,7.4448]
[1718892864690,7.71252439,134.41,134.31,7.4453]
[1718892865265,22.41,134.42,134.28,18.6173]
[1718892865266,22.41,134.42,134.3,7.4459]
[1718892865471,22.41,134.4,134.3,7.4459]
[1718892865977,20.0,134.39,134.26,18.6205]
[1718892866177,22.41,134.4,134.26,24.64142138]
[1718892866369,20.0,134.39,134.29,7.4462]
[1718892866873,22.41,134.38,134.27,7.4471]
[1718892867070,22.41,134.38,134.28,7.4469]
[1718892867274,22.41,134.38,134.25,32.65]
[1718892867275,22.41,134.38,134.27,7.4474]
[1718892867481,42.41,134.37,134.22,29.842379]
[1718892867659,22.41,134.37,134.26,7.4478]
[1718892867861,42.41,134.36,134.26,7.4478]
[1718892868064,42.41,134.36,134.25,7.4485]
[1718892868276,42.41,134.36,134.23,7.4497]
[1718892868577,42.41,134.36,134.24,7.4491]
[1718892868776,42.41,134.36,134.21,16.3276]
[1718892869160,42.41,134.36,134.26,7.448]
[1718892870064,20.0,134.36,134.24,18.622]
[1718892870283,20.0,134.38,134.26,18.6204]
[1718892870462,20.0,134.42,134.26,18.6204]
[1718892870862,20.0,134.42,134.24,18.6231]
[1718892871061,20.0,134.42,134.26,7.4478]
[1718892871280,22.41,134.41,134.21,16.3276]
[1718892871583,22.41,134.39,134.27,7.4472]
[1718892871755,1.72264404,134.42,134.3,7.4456]
[1718892871954,21.72264404,134.42,134.29,7.4464]
[1718892872165,1.72264404,134.42,134.29,7.4464]
[1718892872683,22.41,134.44,134.29,7.4464]
[1718892872865,22.41,134.44,134.3,7.4458]
[1718892873387,22.41,134.42,134.3,7.4458]
[1718892873589,22.41,134.4,134.3,7.4458]
[1718892873878,20.0,134.39,134.3,7.4458]
[1718892874181,20.0,134.39,134.31,7.4453]
[1718892874379,20.0,134.4,134.32,7.4449]
[1718892874684,20.0,134.4,134.31,7.4453]
[1718892874864,20.0,134.4,134.28,18.6166]
[1718892875186,260.33746175,134.45,134.34,7.4433]
[1718892875187,20.0,134.44,134.34,7.4433]
[1718892875364,22.41,134.43,134.34,7.4433]
[1718892875559,20.0,134.42,134.33,7.4441]
[1718892875761,42.41,134.42,134.27,18.6178]
[1718892875960,42.41,134.42,134.31,7.4451]
[1718892876165,42.41,134.42,134.32,7.4447]
[1718892876858,20.0,134.42,134.34,7.4433]
[1718892877078,42.41,134.43,134.33,7.4441]
[1718892877263,42.41,134.43,134.32,7.4444]
[1718892877464,42.41,134.43,134.33,7.444]
[1718892877665,42.41,134.43,134.32,7.4445]
[1718892877873,42.41,134.43,134.33,7.444]
[1718892878071,20.0,134.43,134.32,18.6121]
[1718892878433,20.0,134.44,134.32,18.6121]
[1718892878690,20.0,134.44,134.35,7.443]
[1718892878981,20.0,134.44,134.36,7.4425]
[1718892879171,20.0,134.44,134.35,7.443]
[1718892879772,42.41,134.44,134.33,7.444]
[1718892880183,42.41,134.44,134.32,7.4447]